bitfinex-derivatives/quotes_BTCF0:USTF0_20240907
["timestamp","ask_amount","ask_price","bid_price","bid_amount"]
[1725728159888,0.191761,54492.0,54488.0,0.16488233]
[1725728160090,0.0495,54499.0,54488.0,0.16488233]
[1725728160091,0.1,54489.0,54488.0,0.16488233]
[1725728160292,0.1,54489.0,54488.0,0.16487936]
[1725728161581,0.1,54489.0,54488.0,0.091767]
[1725728161782,0.1,54489.0,54488.0,0.16487936]
[1725728161991,0.1,54489.0,54488.0,0.091767]
[1725728162185,0.1,54489.0,54488.0,0.16487936]
[1725728162383,0.1,54489.0,54488.0,0.091767]
[1725728162986,0.0499,54500.0,54483.0,0.09161059]
[1725728163285,0.0499,54500.0,54487.0,0.05480405]
[1725728163286,0.183534,54488.0,54487.0,0.05480405]
[1725728163481,0.183538,54487.0,54486.0,0.05480405]
[1725728163689,0.091772,54485.0,54484.0,0.05480405]
[1725728164302,0.091776,54483.0,54482.0,0.05480405]
[1725728164488,0.091772,54486.0,54483.0,0.091775]
[1725728164687,0.1,54484.0,54483.0,0.14657905]
[1725728164892,0.191774,54484.0,54481.0,0.07307573]
[1725728165203,0.1,54482.0,54480.0,0.091781]
[1725728165391,0.091781,54480.0,54478.0,0.07307573]
[1725728165586,0.1,54479.0,54478.0,0.091784]
[1725728166086,0.189,54480.0,54478.0,0.091784]
[1725728166398,0.091773,54485.0,54480.0,0.09178]
[1725728166600,0.19,54481.0,54480.0,0.14657101]
[1725728167595,0.19,54481.0,54480.0,0.091781]
[1725728168494,0.19,54481.0,54480.0,0.14657101]
[1725728168698,0.19,54481.0,54480.0,0.091781]
[1725728168995,0.191,54481.0,54480.0,0.104781]
[1725728170291,0.191,54481.0,54480.0,0.15957101]
[1725728170495,0.282779,54481.0,54480.0,0.013]
[1725728170697,0.191,54481.0,54480.0,0.013]
[1725728171001,0.282779,54481.0,54480.0,0.013]
[1725728171184,0.281779,54481.0,54480.0,0.013]
[1725728171390,0.282779,54481.0,54480.0,0.104781]
[1725728171794,0.191,54481.0,54480.0,0.104781]
[1725728172104,0.19,54481.0,54480.0,0.091781]
[1725728172290,0.191,54481.0,54480.0,0.15757101]
[1725728172691,0.281779,54481.0,54480.0,0.091781]
[1725728172901,0.23685678,54481.0,54480.0,0.102781]
[1725728174392,0.091784,54479.0,54477.0,0.091786]
[1725728174587,0.080784,54479.0,54478.0,0.091784]
[1725728174800,0.270784,54479.0,54478.0,0.091784]
[1725728175592,0.091784,54478.0,54477.0,0.013]
[1725728175796,0.281784,54478.0,54477.0,0.013]
[1725728176288,0.001,54479.0,54472.0,0.0484]
[1725728176494,0.191,54479.0,54472.0,0.0484]
[1725728176891,0.282783,54479.0,54472.0,0.0484]
[1725728177097,0.29963577,54479.0,54472.0,0.0484]
[1725728177298,0.001,54479.0,54478.0,0.091784]
[1725728177504,0.001,54479.0,54478.0,0.281784]
[1725728178396,0.091774,54484.0,54483.0,0.091776]
[1725728180000,0.281769,54488.0,54487.0,0.091769]
[1725728180205,0.091769,54488.0,54487.0,0.091769]
[1725728180502,0.281762,54491.0,54490.0,0.091764]
[1725728180805,0.19,54497.0,54489.0,0.07311388]
[1725728181001,0.01656023,54499.0,54497.0,0.091752]
[1725728181302,0.19,54500.0,54495.0,0.07311388]
[1725728181303,0.091752,54497.0,54495.0,0.07311388]
[1725728182010,0.091752,54497.0,54495.0,0.16486888]
[1725728182200,0.091745,54502.0,54495.0,0.07311388]
[1725728182400,0.091739,54505.0,54500.0,0.26311388]
[1725728182596,0.091739,54505.0,54504.0,0.05485647]
[1725728182792,0.091739,54505.0,54501.0,0.07311388]
[1725728182793,0.20696251,54508.0,54502.0,0.07311388]
[1725728183006,0.0918,54517.0,54506.0,0.05488804]
[1725728183304,0.19,54511.0,54508.0,0.14661527]
[1725728183710,0.091732,54509.0,54508.0,0.05488327]
[1725728184297,0.091732,54509.0,54507.0,0.05488327]
[1725728184499,0.19,54508.0,54506.0,0.05488327]
[1725728184708,0.281734,54508.0,54506.0,0.05488327]
[1725728185309,0.091737,54507.0,54505.0,0.05488327]
[1725728185509,0.091737,54507.0,54506.0,0.05488327]
[1725728185708,0.281734,54508.0,54504.0,0.05488327]
[1725728186014,0.281734,54508.0,54505.0,0.05488327]
[1725728186308,0.289734,54508.0,54504.0,0.05488327]
[1725728186503,0.289734,54508.0,54503.0,0.14662527]
[1725728186711,0.099734,54508.0,54503.0,0.14662527]
[1725728187211,0.099734,54508.0,54503.0,0.091742]
[1725728187409,0.091736,54507.0,54503.0,0.14662527]
[1725728187613,0.008,54508.0,54502.0,0.24488327]
[1725728187811,0.10833829,54511.0,54503.0,0.05488327]
[1725728188008,0.006,54508.0,54507.0,0.091735]
[1725728188608,0.10833829,54511.0,54508.0,0.091733]
[1725728189502,0.091724,54514.0,54511.0,0.091727]
[1725728190111,0.091726,54513.0,54511.0,0.091727]
[1725728190415,0.0494,54516.0,54511.0,0.091727]
[1725728190416,0.091727,54512.0,54511.0,0.091727]
[1725728192609,0.014,54514.0,54513.0,0.091725]
[1725728193307,0.091723,54515.0,54513.0,0.091725]
[1725728193711,0.091723,54515.0,54514.0,0.091724]
[1725728195604,0.092723,54515.0,54514.0,0.091724]
[1725728196113,0.091723,54515.0,54514.0,0.091724]
[1725728196304,0.092723,54515.0,54514.0,0.091724]
[1725728196707,0.091723,54515.0,54514.0,0.091724]
[1725728196904,0.092723,54515.0,54514.0,0.091724]
[1725728198115,0.001,54515.0,54514.0,0.091724]
[1725728198440,0.001,54515.0,54511.0,0.0488]
[1725728198919,0.091717,54518.0,54511.0,0.0488]
[1725728199126,0.091717,54518.0,54515.0,0.09172]
[1725728199422,0.091719,54517.0,54515.0,0.09172]
[1725728199613,0.09172,54516.0,54515.0,0.09172]
[1725728202210,0.09272,54516.0,54515.0,0.09172]
[1725728203617,0.001,54516.0,54515.0,0.09172]
[1725728204919,0.09272,54516.0,54515.0,0.09172]
[1725728205516,0.001,54516.0,54515.0,0.09172]
[1725728205721,0.001,54516.0,54515.0,0.19172]
[1725728206723,0.09272,54516.0,54515.0,0.19172]
[1725728207424,0.001,54516.0,54515.0,0.19172]
[1725728207817,0.001,54516.0,54515.0,0.1]
[1725728208019,0.001,54516.0,54515.0,0.191722]
[1725728208422,0.091712,54521.0,54520.0,0.091713]
[1725728208620,0.091712,54521.0,54520.0,0.191713]
[1725728209224,0.0486,54526.0,54520.0,0.191713]
[1725728209225,0.091692,54533.0,54521.0,0.091711]
[1725728209431,0.1,54541.0,54535.0,0.091688]
[1725728209432,0.091687,54536.0,54535.0,0.091688]
[1725728209619,0.091687,54536.0,54535.0,0.191688]
[1725728210019,0.091687,54536.0,54535.0,0.091688]
[1725728210330,0.15745253,54536.0,54535.0,0.06351921]
[1725728211118,0.06576553,54536.0,54535.0,0.06351921]
[1725728211823,0.07976553,54536.0,54535.0,0.06351921]
[1725728213032,0.07976553,54536.0,54535.0,0.10941921]
[1725728213931,0.014,54536.0,54535.0,0.10941921]
[1725728214434,0.014,54536.0,54535.0,0.65953921]
[1725728215531,0.014,54536.0,54535.0,1.25953921]
[1725728221324,0.014,54536.0,54535.0,0.65953921]
[1725728221533,0.014,54536.0,54535.0,1.25953921]
[1725728221835,0.014,54536.0,54535.0,0.06351921]
[1725728222040,0.105687,54536.0,54535.0,0.06351921]
[1725728222431,0.014,54536.0,54535.0,0.06351921]
[1725728222636,0.105687,54536.0,54535.0,0.06351921]
[1725728222941,0.014,54536.0,54535.0,0.06351921]
[1725728223328,0.014,54536.0,54531.0,0.091694]
[1725728223534,0.091694,54532.0,54531.0,0.091694]
[1725728224541,0.091695,54531.0,54526.0,0.091703]
[1725728224734,0.0472,54531.0,54526.0,0.091703]
[1725728225041,0.0472,54531.0,54524.0,0.19]
[1725728225242,0.091703,54527.0,54524.0,0.19]
[1725728225438,0.06577846,54526.0,54524.0,0.19]
[1725728225639,0.06577846,54525.0,54524.0,0.19]
[1725728227736,0.091703,54527.0,54524.0,0.281707]
[1725728227737,0.06577846,54526.0,54524.0,0.281707]
[1725728227943,0.003,54525.0,54524.0,0.281707]
[1725728228336,0.06877846,54525.0,54524.0,0.281707]
[1725728228944,0.06577846,54525.0,54524.0,0.281707]
[1725728229940,0.06877846,54525.0,54524.0,0.281707]
[1725728233241,0.003,54525.0,54524.0,0.281707]
[1725728233435,0.003,54525.0,54524.0,0.091707]
[1725728234946,0.003,54525.0,54524.0,0.281707]
[1725728236143,0.094705,54525.0,54524.0,0.281707]
[1725728241255,0.003,54525.0,54524.0,0.281707]
[1725728243437,0.003,54525.0,54524.0,0.373414]
[1725728247953,0.003,54525.0,54524.0,0.281707]
[1725728247954,0.094705,54525.0,54524.0,0.281707]
[1725728248260,0.003,54525.0,54524.0,0.281707]
[1725728250856,0.003,54525.0,54524.0,0.091707]
[1725728250857,0.1604821,54525.0,54524.0,0.091707]
[1725728251056,0.23574401,54525.0,54524.0,0.06353631]
[1725728253470,0.1604821,54525.0,54524.0,0.06353631]
[1725728255261,0.094705,54525.0,54524.0,0.06353631]
[1725728256161,0.11191125,54525.0,54524.0,0.06353631]
[1725728256860,0.09171,54522.0,54521.0,0.281711]
[1725728258270,0.10891636,54522.0,54521.0,0.281711]
[1725728258481,0.09171,54522.0,54521.0,0.281711]
[1725728259572,0.09271,54522.0,54521.0,0.281711]
[1725728260071,0.10991718,54522.0,54521.0,0.191711]
[1725728260673,0.09271,54522.0,54521.0,0.191711]
[1725728260864,0.10991705,54522.0,54521.0,0.191711]
[1725728262366,0.09271,54522.0,54521.0,0.191711]
[1725728263267,0.14204299,54522.0,54516.0,0.0455]
[1725728263469,0.091719,54517.0,54516.0,0.0455]
[1725728263678,0.15749822,54517.0,54516.0,0.1455]
[1725728263969,0.15749822,54517.0,54516.0,0.23722]
[1725728263970,0.06577922,54517.0,54516.0,0.23722]
[1725728264379,0.06577922,54517.0,54516.0,1.47922]
[1725728264767,0.06677922,54517.0,54516.0,1.47922]
[1725728267881,0.06577922,54517.0,54516.0,1.47922]
[1725728268070,0.06677922,54517.0,54516.0,1.47922]
[1725728268580,0.06577922,54517.0,54516.0,1.47922]
[1725728268768,0.06677922,54517.0,54516.0,1.47922]
[1725728269177,0.06577922,54517.0,54516.0,1.47922]
[1725728269379,0.06677922,54517.0,54516.0,1.47922]
[1725728270375,0.001,54517.0,54516.0,1.47922]
[1725728271471,0.01662437,54528.0,54527.0,0.091702]
[1725728271667,0.091696,54531.0,54530.0,0.091697]
[1725728271970,0.01720537,54531.0,54530.0,0.18252731]
[1725728272482,0.091688,54535.0,54530.0,0.1]
[1725728272483,0.01720372,54532.0,54530.0,0.1]
[1725728272785,0.01720372,54531.0,54530.0,0.191697]
[1725728272980,0.01720348,54531.0,54530.0,0.191697]
[1725728273175,0.005,54531.0,54530.0,0.1]
[1725728273571,0.02220346,54531.0,54530.0,0.1]
[1725728273973,0.02220346,54531.0,54530.0,0.191697]
[1725728274375,0.096695,54531.0,54530.0,0.091697]
[1725728274685,0.091695,54531.0,54530.0,0.191697]
[1725728274873,0.091695,54531.0,54530.0,0.192697]
[1725728275380,0.097695,54531.0,54530.0,0.192697]
[1725728275986,0.097695,54531.0,54530.0,0.282697]
[1725728278083,0.091695,54531.0,54530.0,0.281697]
[1725728278686,0.092695,54531.0,54530.0,0.281697]
[1725728283687,0.10990031,54531.0,54530.0,0.281697]
[1725728283886,0.092695,54531.0,54530.0,0.281697]
[1725728284287,0.10990027,54531.0,54530.0,0.281697]
[1725728284486,0.10990027,54531.0,54530.0,0.25352731]
[1725728285285,0.26990864,54531.0,54530.0,0.19]
[1725728285883,0.26990864,54531.0,54530.0,0.281697]
[1725728287989,0.26890864,54531.0,54530.0,0.281697]
[1725728288190,0.26990864,54531.0,54530.0,0.281697]
[1725728289493,0.26990864,54531.0,54530.0,0.25182981]
[1725728290192,0.17821364,54531.0,54530.0,0.25182981]
[1725728290397,0.09346706,54531.0,54530.0,0.25182981]
[1725728292092,0.17821364,54531.0,54530.0,0.25182981]
[1725728292494,0.16100837,54531.0,54530.0,0.25182981]
[1725728293391,0.001,54531.0,54530.0,0.25182981]
[1725728293700,0.001,54531.0,54530.0,0.281697]
[1725728296001,0.001,54531.0,54530.0,0.191697]
[1725728300403,0.07626179,54531.0,54530.0,0.191697]
[1725728301992,0.091665,54550.0,54531.0,0.091695]
[1725728302194,0.16000079,54549.0,54548.0,0.091666]
[1725728302504,0.09245647,54549.0,54548.0,0.191666]
[1725728302691,0.07525421,54549.0,54548.0,0.191666]
[1725728303510,0.08925421,54549.0,54548.0,0.192666]
[1725728303907,0.08925421,54549.0,54548.0,0.282666]
[1725728306700,0.08925421,54549.0,54548.0,0.25439941]
[1725728307609,0.1064519,54549.0,54548.0,0.25439941]
[1725728308406,0.03119769,54549.0,54548.0,0.25439941]
[1725728310008,0.12286269,54549.0,54548.0,0.001]
[1725728311214,1.00452769,54549.0,54548.0,0.001]
[1725728311416,1.55448769,54549.0,54548.0,0.001]
[1725728311719,1.55448769,54549.0,54548.0,0.00090001]
[1725728314624,1.53729,54549.0,54548.0,0.00090001]
[1725728315529,1.61254421,54549.0,54548.0,0.00081001]
[1725728315923,1.69729079,54549.0,54548.0,0.00081001]
[1725728316826,1.69729079,54549.0,54534.0,0.318388]
[1725728316827,1.58849596,54549.0,54534.0,0.318388]
[1725728317015,0.19,54540.0,54528.0,0.0457]
[1725728317216,0.091698,54530.0,54529.0,0.091698]
[1725728317421,0.0917,54529.0,54527.0,0.2817]
[1725728317622,0.07525421,54528.0,54527.0,0.2817]
[1725728317832,0.16695421,54528.0,54527.0,0.2817]
[1725728318125,0.07525421,54528.0,54524.0,0.281707]
[1725728318331,0.091705,54526.0,54524.0,0.281707]
[1725728318518,0.091705,54525.0,54524.0,0.281707]
[1725728318829,0.085705,54525.0,54524.0,0.281707]
[1725728319640,0.085705,54525.0,54524.0,0.198]
[1725728320437,0.1609673,54525.0,54524.0,0.198]
[1725728321337,0.1619673,54525.0,54524.0,0.19]
[1725728321836,0.091713,54521.0,54520.0,0.19]
[1725728322427,0.091713,54521.0,54512.0,0.091727]
[1725728322428,1.2255023,54521.0,54512.0,0.091727]
[1725728322737,0.19,54523.0,54512.0,0.091727]
[1725728322738,0.2652623,54520.0,54512.0,0.091727]
[1725728322929,0.0752623,54519.0,54512.0,0.08255431]
[1725728323137,0.19,54520.0,54509.0,0.19]
[1725728323138,0.091722,54515.0,54513.0,0.091725]
[1725728323834,0.091724,54514.0,54513.0,0.091725]
[1725728325527,0.092724,54514.0,54513.0,0.091725]
[1725728325930,0.092724,54514.0,54513.0,0.056725]
[1725728325931,0.091724,54514.0,54513.0,0.056725]
[1725728331525,0.01654437,54523.0,54512.0,0.19]
[1725728331727,0.091709,54523.0,54522.0,0.19]
[1725728331929,0.091709,54523.0,54517.0,0.1398]
[1725728332231,0.091714,54520.0,54519.0,0.19]
[1725728334242,0.10822623,54527.0,54518.0,0.091716]
[1725728334243,0.091715,54519.0,54518.0,0.091716]
[1725728334641,0.091717,54518.0,54517.0,0.0472]
[1725728335642,0.091719,54517.0,54516.0,0.09172]
[1725728337943,0.091722,54515.0,54512.0,0.19]
[1725728338148,0.091722,54515.0,54514.0,0.091724]
[1725728340744,0.091716,54519.0,54517.0,0.091718]
[1725728340937,0.091716,54519.0,54518.0,0.19]
[1725728341637,0.091716,54519.0,54518.0,0.281717]
[1725728342033,0.091716,54519.0,54518.0,0.19]
[1725728345240,0.091716,54519.0,54516.0,0.091719]
[1725728345844,0.091716,54519.0,54517.0,0.091719]
[1725728346149,0.091717,54518.0,54517.0,0.091719]
[1725728351447,0.10832663,54518.0,54517.0,0.091719]
[1725728355958,0.07527392,54522.0,54515.0,0.19]
[1725728356152,0.01631064,54526.0,54524.0,0.091707]
[1725728356359,0.091705,54525.0,54524.0,0.281707]
[1725728357349,0.091712,54522.0,54513.0,0.091725]
[1725728357550,0.091712,54522.0,54519.0,0.19]
[1725728358059,0.091712,54522.0,54519.0,0.1]
[1725728358967,0.091712,54522.0,54521.0,0.091712]
[1725728361465,0.10892019,54522.0,54521.0,0.091712]
[1725728362054,0.12531944,54522.0,54521.0,0.091712]
[1725728362257,0.12531947,54522.0,54521.0,0.091712]
[1725728362662,0.10811125,54522.0,54521.0,0.091712]
[1725728362853,0.12531949,54522.0,54521.0,0.091712]
[1725728363055,0.091712,54521.0,54513.0,0.01655873]
[1725728363360,0.091723,54516.0,54515.0,0.091721]
[1725728363565,0.10893124,54516.0,54515.0,0.091721]
[1725728366664,0.091723,54516.0,54515.0,0.091721]
[1725728367467,0.091729,54511.0,54503.0,0.49236758]
[1725728367656,0.091729,54511.0,54509.0,0.191732]
[1725728367857,0.091729,54511.0,54509.0,0.11638265]
[1725728368051,0.091729,54511.0,54510.0,0.13673]
[1725728377773,0.10893964,54511.0,54510.0,0.13673]
[1725728379476,0.10893964,54511.0,54510.0,0.23673]
[1725728382174,0.091729,54511.0,54510.0,0.23673]
[1725728384576,0.091729,54511.0,54510.0,0.19173]
[1725728390272,0.091729,54511.0,54510.0,0.09173]
[1725728390472,0.091729,54511.0,54510.0,0.19173]
[1725728390675,0.16700908,54511.0,54510.0,0.19173]
[1725728396076,0.091744,54502.0,54501.0,0.091743]
[1725728397380,0.091744,54502.0,54501.0,0.191743]
[1725728400184,0.138031,54510.0,54505.0,0.091739]
[1725728400487,0.091735,54507.0,54506.0,0.15502923]
[1725728400681,0.091735,54507.0,54506.0,0.1]
[1725728401477,0.091735,54507.0,54506.0,0.191737]
[1725728401674,0.046,54518.0,54506.0,0.191737]
[1725728401874,0.137717,54518.0,54517.0,0.0985]
[1725728402084,0.15492797,54518.0,54517.0,0.0985]
[1725728403287,0.17113966,54518.0,54517.0,0.0985]
[1725728404083,0.07942266,54518.0,54514.0,0.191723]
[1725728404395,0.091722,54515.0,54514.0,0.191723]
[1725728404600,0.10893297,54515.0,54514.0,0.191723]
[1725728405094,0.090222,54515.0,54514.0,0.191723]
[1725728408193,0.10743297,54515.0,54514.0,0.191723]
[1725728408696,0.01621169,54518.0,54517.0,0.091719]
[1725728408902,0.091717,54519.0,54517.0,0.1]
[1725728409194,0.1,54523.0,54517.0,0.1]
[1725728409402,0.091716,54519.0,54517.0,0.1]
[1725728409589,0.091717,54519.0,54517.0,0.1]
[1725728410895,0.091717,54518.0,54517.0,0.1]
[1725728412198,0.10892663,54518.0,54517.0,0.1]
[1725728413100,0.10892663,54518.0,54512.0,0.1]
[1725728413101,0.091727,54513.0,54512.0,0.1]
[1725728413285,0.10893663,54513.0,54510.0,0.091729]
[1725728413485,0.10893763,54512.0,54510.0,0.091729]
[1725728413804,0.01720963,54511.0,54510.0,0.091729]
[1725728414103,0.10893863,54511.0,54510.0,0.091729]
[1725728414300,0.091739,54505.0,54500.0,0.091746]
[1725728414485,0.091744,54503.0,54500.0,0.091746]
[1725728414689,0.01720963,54502.0,54500.0,0.091746]
[1725728414891,0.10895463,54502.0,54500.0,0.091746]
[1725728415104,0.091745,54502.0,54500.0,0.091746]
[1725728415398,0.01721287,54501.0,54500.0,0.091746]
[1725728416500,0.091745,54502.0,54500.0,0.091746]
[1725728416896,0.01721302,54501.0,54500.0,0.091746]
[1725728417196,0.091745,54502.0,54500.0,0.091746]
[1725728418600,0.091746,54501.0,54500.0,0.091746]
[1725728421596,0.091747,54500.0,54499.0,0.1733723]
[1725728423496,0.091747,54500.0,54499.0,0.1]
[1725728423995,0.091747,54500.0,54499.0,0.191749]
[1725728428104,0.0482,54510.0,54499.0,0.1]
[1725728428408,0.0482,54510.0,54498.0,0.01624566]
[1725728428409,0.09173,54510.0,54509.0,0.1]
[1725728429805,0.09173,54510.0,54509.0,0.191732]
[1725728431101,0.09173,54510.0,54509.0,0.20856816]
[1725728431296,0.09173,54510.0,54509.0,0.191732]
[1725728437403,0.091714,54520.0,54509.0,1.342092]
[1725728437608,0.091721,54516.0,54514.0,0.091723]
[1725728437802,0.01720965,54515.0,54508.0,0.1374]
[1725728438006,0.01720965,54514.0,54508.0,0.1374]
[1725728438209,0.091731,54510.0,54508.0,0.229133]
[1725728438403,0.091731,54510.0,54509.0,0.091732]
[1725728439120,0.091731,54510.0,54509.0,0.191732]
[1725728442018,0.091725,54514.0,54513.0,0.091725]
[1725728442222,0.10893498,54514.0,54513.0,0.191725]
[1725728442417,0.091725,54514.0,54513.0,0.191725]
[1725728443215,0.16700293,54514.0,54513.0,0.191725]
[1725728446317,0.07527793,54518.0,54513.0,0.1]
[1725728446514,0.07527793,54517.0,54516.0,0.1]
[1725728446822,0.07527793,54517.0,54516.0,0.28344]
[1725728449330,0.07526823,54517.0,54516.0,0.1]
[1725728449529,0.07526823,54517.0,54516.0,0.28344]
[1725728450320,0.07526823,54526.0,54525.0,0.091705]
[1725728450522,0.09247464,54526.0,54525.0,0.191705]
[1725728451134,0.01720641,54526.0,54525.0,0.191705]
[1725728451433,0.09169,54534.0,54526.0,0.091703]
[1725728451626,0.0454,54535.0,54534.0,0.09169]
[1725728452025,0.06260353,54535.0,54534.0,0.09169]
[1725728453834,0.15429153,54535.0,54534.0,0.09169]
[1725728454035,0.15429153,54535.0,54534.0,0.28169]
[1725728454338,0.137088,54535.0,54534.0,0.28169]
[1725728454931,0.15429143,54535.0,54534.0,0.28169]
[1725728455437,0.137088,54535.0,54534.0,0.28169]
[1725728455733,0.15429145,54535.0,54534.0,0.28169]
[1725728455930,0.137088,54535.0,54534.0,0.28169]
[1725728456839,0.0454,54535.0,54534.0,0.28169]
[1725728457936,0.091685,54537.0,54534.0,0.19]
[1725728458132,0.22772366,54853.0,54534.0,0.19]
[1725728458133,0.141478,54542.0,54534.0,0.19]
[1725728458327,0.091678,54542.0,54541.0,0.19]
[1725728460639,0.091678,54542.0,54541.0,0.281678]
[1725728461149,0.091672,54545.0,54544.0,0.091673]
[1725728461340,0.091672,54545.0,54544.0,0.281673]
[1725728461833,0.091677,54542.0,54541.0,0.19]
[1725728462043,0.091677,54542.0,54540.0,0.091678]
[1725728462339,0.091677,54542.0,54541.0,0.091678]
[1725728462835,0.091682,54539.0,54534.0,0.19]
[1725728463039,0.091687,54536.0,54534.0,0.19]
[1725728463238,0.091691,54534.0,54531.0,0.19]
[1725728464341,0.0498,54546.0,54531.0,0.19]
[1725728464537,0.0498,54546.0,54541.0,0.091678]
[1725728464929,0.141472,54546.0,54545.0,0.091672]
[1725728465432,0.091672,54545.0,54544.0,0.19]
[1725728465639,0.091673,54544.0,54543.0,0.091674]
[1725728465828,0.10887497,54544.0,54543.0,0.091674]
[1725728466342,0.1841432,54544.0,54543.0,0.05896661]
[1725728466532,0.26891157,54544.0,54543.0,0.05896661]
[1725728466738,0.1841432,54544.0,54543.0,0.05896661]
[1725728466941,0.26891157,54544.0,54543.0,0.05896661]
[1725728467243,0.1841432,54544.0,54543.0,0.05896661]
[1725728467942,0.16694123,54544.0,54543.0,0.05896661]
[1725728469435,0.18414314,54544.0,54543.0,0.05896661]
[1725728469637,0.091677,54542.0,54541.0,0.19]
[1725728469839,0.16694523,54542.0,54541.0,0.19]
[1725728470444,0.09247081,54542.0,54534.0,0.19]
[1725728470645,0.091688,54535.0,54534.0,0.19]
[1725728470836,0.16695623,54535.0,54534.0,0.19]
[1725728471041,0.16695623,54535.0,54534.0,0.16183081]
[1725728472241,0.16695123,54539.0,54534.0,0.16183081]
[1725728472440,0.091683,54539.0,54538.0,0.19]
[1725728480752,0.091683,54539.0,54527.0,0.175088]
[1725728480753,0.091697,54531.0,54527.0,0.175088]
[1725728480948,0.091697,54531.0,54530.0,0.091696]
[1725728481346,0.25168125,54531.0,54530.0,0.091696]
[1725728481754,0.16694529,54531.0,54530.0,0.091696]
[1725728482252,0.091698,54529.0,54528.0,0.19]
[1725728482446,0.25168225,54529.0,54528.0,0.19]
[1725728482654,0.25168225,54529.0,54515.0,0.128388]
[1725728482655,0.34998425,54529.0,54515.0,0.128388]
[1725728482951,0.091713,54521.0,54517.0,0.2394]
[1725728483159,0.19,54525.0,54517.0,0.2394]
[1725728483160,0.15998425,54520.0,54517.0,0.2394]
[1725728483455,0.091703,54527.0,54512.0,0.091727]
[1725728483456,0.091722,54515.0,54512.0,0.091727]
[1725728483655,0.091722,54515.0,54510.0,0.2394]
[1725728483656,0.091729,54512.0,54510.0,0.25638495]
[1725728483861,0.07524829,54511.0,54508.0,0.0493]
[1725728484056,0.15998425,54510.0,54508.0,0.0493]
[1725728484246,0.091728,54512.0,54509.0,0.19]
[1725728484561,0.07528439,54511.0,54509.0,0.19]
[1725728484752,0.07528439,54510.0,54509.0,0.19]
[1725728488255,0.091728,54512.0,54509.0,0.19]
[1725728490767,0.01721029,54511.0,54509.0,0.19]
[1725728492252,0.09173,54510.0,54509.0,0.19]
[1725728497157,0.09173,54510.0,54509.0,0.281732]
[1725728501371,0.03204556,54516.0,54512.0,0.03]
[1725728501571,0.091725,54513.0,54512.0,0.03]
[1725728501963,0.091725,54513.0,54512.0,0.121727]
[1725728502171,0.091725,54513.0,54512.0,0.311727]
[1725728502670,0.19,54525.0,54515.0,0.091721]
[1725728502865,0.0468,54519.0,54512.0,0.03]
[1725728503177,0.091725,54513.0,54512.0,0.03]
[1725728506573,0.091725,54513.0,54512.0,0.22]
[1725728510483,0.091725,54513.0,54512.0,0.311727]
[1725728518379,0.16700693,54513.0,54512.0,0.311727]
[1725728521083,0.18421756,54513.0,54512.0,0.121727]
[1725728521885,0.16700693,54513.0,54512.0,0.121727]
[1725728522089,0.18421752,54513.0,54512.0,0.121727]
[1725728523687,0.16700693,54513.0,54512.0,0.311727]
[1725728524077,0.18421684,54513.0,54512.0,0.311727]
[1725728525293,0.16700693,54513.0,54512.0,0.311727]
[1725728526392,0.091725,54513.0,54512.0,0.311727]
[1725728529397,0.091725,54513.0,54512.0,0.03]
[1725728530284,0.01668699,54516.0,54512.0,0.121727]
[1725728530590,0.19,54526.0,54512.0,0.121727]
[1725728530591,0.091703,54526.0,54515.0,0.19]
[1725728530793,0.091703,54526.0,54524.0,0.19]
[1725728530794,0.10891255,54525.0,54524.0,0.19]
[1725728531387,0.10891255,54525.0,54524.0,0.281707]
[1725728531687,0.091705,54525.0,54524.0,0.281707]
[1725728532085,0.091705,54525.0,54524.0,0.191707]
[1725728532888,0.10891213,54525.0,54524.0,0.191707]
[1725728533490,0.18419325,54525.0,54524.0,0.191707]
[1725728533999,0.18419325,54525.0,54524.0,0.091707]
[1725728537698,0.09248825,54525.0,54521.0,0.091712]
[1725728537894,0.09248825,54524.0,54521.0,0.091712]
[1725728538104,0.0917,54528.0,54521.0,0.091712]
[1725728538105,0.09248825,54523.0,54521.0,0.091712]
[1725728538405,0.01720713,54523.0,54521.0,0.091712]
[1725728538706,0.01720713,54522.0,54521.0,0.091712]
[1725728538908,0.09171,54522.0,54521.0,0.091712]
[1725728539100,0.10891713,54522.0,54521.0,0.091712]
[1725728539302,0.18419825,54522.0,54521.0,0.091712]
[1725728539896,0.16699112,54522.0,54521.0,0.091712]
[1725728541393,0.09171,54522.0,54521.0,0.091712]
[1725728545296,0.091717,54519.0,54518.0,0.091717]
[1725728545511,0.091718,54518.0,54517.0,0.091719]
[1725728550915,0.091724,54514.0,54513.0,0.0452]
[1725728552029,0.18345,54513.0,54512.0,0.03]
[1725728555123,0.20066099,54513.0,54512.0,0.03]
[1725728556824,0.19466099,54513.0,54512.0,0.03]
[1725728557608,0.19566099,54513.0,54512.0,0.03]
[1725728562918,0.17845,54513.0,54512.0,0.03]
[1725728563624,0.086725,54513.0,54512.0,0.03]
[1725728565327,0.087725,54513.0,54512.0,0.03]
[1725728570119,0.087725,54513.0,54512.0,0.121727]
[1725728570916,0.16300845,54513.0,54512.0,0.121727]
[1725728571427,0.002,54513.0,54512.0,0.672047]
[1725728571618,0.11768305,54545.0,54516.0,0.09172]
[1725728571619,0.07527451,54525.0,54516.0,0.09172]
[1725728571930,0.11246303,54528.0,54524.0,0.1]
[1725728571931,0.07527451,54527.0,54524.0,0.1]
[1725728572130,0.091701,54528.0,54526.0,0.191702]
[1725728572331,0.07527451,54527.0,54526.0,0.1]
[1725728572534,0.091696,54531.0,54526.0,0.1]